[Event "*** Titled Tuesday Blitz"]
[Site "Chess.com"]
[Date "2021.03.30"]
[Round "10"]
[White "MalyDominator"]
[Black "sokidze"]
[Result "0-1"]
[WhiteElo "2488"]
[BlackElo "2762"]
[TimeControl "180+1"]
[EndTime "11:58:59 PDT"]
[Termination "sokidze won by resignation"]

1. e4 {[%clk 0:03:00.9]} 1... c5 {[%clk 0:03:00.4]} 2. Nf3 {[%clk 0:02:50.3]}
2... Nc6 {[%clk 0:02:59.8]} 3. d4 {[%clk 0:02:40.4]} 3... cxd4 {[%clk
0:02:58.5]} 4. Nxd4 {[%clk 0:02:41.3]} 4... g6 {[%clk 0:02:58.4]} 5. c4 {[%clk
0:02:39.8]} 5... Nf6 {[%clk 0:02:57.7]} 6. Nc3 {[%clk 0:02:37]} 6... d6 {[%clk
0:02:58.3]} 7. Be2 {[%clk 0:02:36.2]} 7... Nxd4 {[%clk 0:02:58.5]} 8. Qxd4
{[%clk 0:02:37]} 8... Bg7 {[%clk 0:02:59.4]} 9. Be3 {[%clk 0:02:37.2]} 9... O-O
{[%clk 0:02:59.4]} 10. Qd2 {[%clk 0:02:37.2]} 10... a5 {[%clk 0:03:00]} 11. Rd1
{[%clk 0:02:36.1]} 11... a4 {[%clk 0:02:59.4]} 12. Bd4 {[%clk 0:02:36.2]} 12...
Qa5 {[%clk 0:02:32.2]} 13. O-O {[%clk 0:02:29.6]} 13... Bd7 {[%clk 0:02:23.7]}
14. Qe3 {[%clk 0:02:26.9]} 14... Bc6 {[%clk 0:02:20.5]} 15. f4 {[%clk
0:02:16.3]} 15... Nd7 {[%clk 0:02:07.9]} 16. Kh1 {[%clk 0:02:13.8]} 16... Bxd4
{[%clk 0:01:50.3]} 17. Rxd4 {[%clk 0:02:14.7]} 17... Qb6 {[%clk 0:01:43.6]} 18.
Rb1 {[%clk 0:02:03.9]} 18... e5 {[%clk 0:01:38.1]} 19. fxe5 {[%clk 0:01:55.5]}
19... dxe5 {[%clk 0:01:28.3]} 20. Rd3 {[%clk 0:01:54.8]} 20... Qxe3 {[%clk
0:01:27.5]} 21. Rxe3 {[%clk 0:01:55.7]} 21... Nc5 {[%clk 0:01:28.4]} 22. Nd5
{[%clk 0:01:52.8]} 22... Kg7 {[%clk 0:01:23.6]} 23. Kg1 {[%clk 0:01:49.5]} 23...
Ne6 {[%clk 0:01:17.1]} 24. b4 {[%clk 0:01:39.6]} 24... axb3 {[%clk 0:01:15.7]}
25. axb3 {[%clk 0:01:39.1]} 25... Nd4 {[%clk 0:01:15.6]} 26. Bf1 {[%clk
0:01:38.7]} 26... Ra3 {[%clk 0:00:58.5]} 27. Kf2 {[%clk 0:01:33]} 27... f5
{[%clk 0:00:54.7]} 28. exf5 {[%clk 0:00:26]} 28... Rxf5+ {[%clk 0:00:54]} 29.
Kg1 {[%clk 0:00:25.6]} 29... Ra2 {[%clk 0:00:52.9]} 30. Bd3 {[%clk 0:00:22.3]}
30... Rg5 {[%clk 0:00:47.6]} 31. Be4 {[%clk 0:00:22.2]} 31... Ne2+ {[%clk
0:00:36.9]} 32. Kh1 {[%clk 0:00:15.5]} 32... Nf4 {[%clk 0:00:32]} 33. g3 {[%clk
0:00:13.4]} 33... Nh3 {[%clk 0:00:26.4]} 34. Bg2 {[%clk 0:00:09.9]} 34... Nf2+
{[%clk 0:00:26.3]} 35. Kg1 {[%clk 0:00:10.3]} 35... Ng4 {[%clk 0:00:26.8]} 36.
Ree1 {[%clk 0:00:07.9]} 36... Rf5 {[%clk 0:00:25.5]} 37. h3 {[%clk 0:00:07.8]}
37... Rff2 {[%clk 0:00:22.7]} 38. Be4 {[%clk 0:00:06.3]} 38... Nh6 {[%clk
0:00:18.2]} 39. Rf1 {[%clk 0:00:04.4]} 39... Rfe2 {[%clk 0:00:16.6]} 40. Rbe1
{[%clk 0:00:04.6]} 40... Rxe1 {[%clk 0:00:12.6]} 41. Rxe1 {[%clk 0:00:04.6]}
41... Rb2 {[%clk 0:00:11.5]} 42. Re3 {[%clk 0:00:04.7]} 42... Bd7 {[%clk
0:00:09.6]} 43. h4 {[%clk 0:00:03.6]} 43... Ng4 {[%clk 0:00:09.4]} 44. Rc3
{[%clk 0:00:03.8]} 44... Bf5 {[%clk 0:00:08.7]} 45. Bxf5 {[%clk 0:00:02.8]}
45... gxf5 {[%clk 0:00:09.6]} 46. b4 {[%clk 0:00:03.1]} 46... e4 {[%clk
0:00:09.9]} 47. c5 {[%clk 0:00:03]} 47... Kf7 {[%clk 0:00:08.1]} 48. c6 {[%clk
0:00:03.1]} 48... bxc6 {[%clk 0:00:08.5]} 49. Rxc6 {[%clk 0:00:03.3]} 49... e3
{[%clk 0:00:08.1]} 50. Rc1 {[%clk 0:00:01.5]} 50... e2 {[%clk 0:00:06.1]} 51.
Re1 {[%clk 0:00:01.7]} 51... Ne5 {[%clk 0:00:06.6]} 52. Nf4 {[%clk 0:00:01.8]}
52... Nf3+ {[%clk 0:00:06.9]} 53. Kf2 {[%clk 0:00:02.3]} 53... Nxe1 {[%clk
0:00:07.3]} 54. Kxe1 {[%clk 0:00:03.2]} 54... Rxb4 {[%clk 0:00:07.5]} 55. Nxe2
{[%clk 0:00:03.8]} 55... Kf6 {[%clk 0:00:05.8]} 56. Kf2 {[%clk 0:00:04.3]} 56...
Rb3 {[%clk 0:00:05.3]} 57. Nf4 {[%clk 0:00:04.3]} 57... Ra3 {[%clk 0:00:05.5]}
58. Kg2 {[%clk 0:00:04.5]} 58... Ke5 {[%clk 0:00:05.9]} 59. Kf2 {[%clk 0:00:05]}
59... h6 {[%clk 0:00:06.5]} 60. Kg2 {[%clk 0:00:05.4]} 60... Ke4 {[%clk
0:00:07.2]} 61. Kf2 {[%clk 0:00:06]} 61... Ra2+ {[%clk 0:00:07.8]} 62. Kf1
{[%clk 0:00:06]} 62... Kf3 {[%clk 0:00:08]} 0-1

[Event "*** Titled Tuesday Blitz"]
[Site "Chess.com"]
[Date "2021.03.30"]
[Round "10"]
[White "ChronicUnhappiness"]
[Black "Ave_Mariia"]
[Result "0-1"]
[WhiteElo "2348"]
[BlackElo "2482"]
[TimeControl "180+1"]
[EndTime "11:59:01 PDT"]
[Termination "Ave_Mariia won by resignation"]

1. d3 {[%clk 0:03:00.9]} 1... d5 {[%clk 0:02:57]} 2. Nf3 {[%clk 0:03:01.8]} 2...
Nf6 {[%clk 0:02:56.5]} 3. g3 {[%clk 0:03:02.3]} 3... g6 {[%clk 0:02:56.7]} 4.
Bg2 {[%clk 0:03:03.2]} 4... Bg7 {[%clk 0:02:56.4]} 5. O-O {[%clk 0:03:04.1]}
5... O-O {[%clk 0:02:56.9]} 6. c4 {[%clk 0:03:04.5]} 6... c6 {[%clk 0:02:55.2]}
7. cxd5 {[%clk 0:03:03.5]} 7... cxd5 {[%clk 0:02:56.1]} 8. Nc3 {[%clk
0:03:02.9]} 8... Nc6 {[%clk 0:02:56.4]} 9. Bf4 {[%clk 0:03:03]} 9... d4 {[%clk
0:02:45.1]} 10. Na4 {[%clk 0:02:22.7]} 10... Nd5 {[%clk 0:02:33.9]} 11. Bd2
{[%clk 0:02:18.1]} 11... e5 {[%clk 0:02:28.5]} 12. Rc1 {[%clk 0:02:17.3]} 12...
f5 {[%clk 0:02:18.3]} 13. Ng5 {[%clk 0:02:12.5]} 13... h6 {[%clk 0:02:12.1]} 14.
Qb3 {[%clk 0:02:11.6]} 14... Ne7 {[%clk 0:02:10.4]} 15. Rxc8 {[%clk 0:01:59.7]}
15... Rxc8 {[%clk 0:01:40.9]} 16. Ne6 {[%clk 0:01:57.3]} 16... Qd7 {[%clk
0:01:40.2]} 17. Nxf8 {[%clk 0:01:49.2]} 17... Kxf8 {[%clk 0:01:36.6]} 18. Bb4
{[%clk 0:01:37.9]} 18... Nxb4 {[%clk 0:01:34.1]} 19. Qxb4 {[%clk 0:01:38.8]}
19... Rc7 {[%clk 0:01:28.5]} 20. Qb3 {[%clk 0:00:45.7]} 20... Qc8 {[%clk
0:01:23.1]} 21. h4 {[%clk 0:00:37.8]} 21... Bf6 {[%clk 0:01:18]} 22. h5 {[%clk
0:00:37.3]} 22... g5 {[%clk 0:01:18.1]} 23. a3 {[%clk 0:00:31]} 23... Kg7 {[%clk
0:01:17.9]} 24. Qb4 {[%clk 0:00:29]} 24... b6 {[%clk 0:01:09]} 25. b3 {[%clk
0:00:28.8]} 25... Rc2 {[%clk 0:01:06.8]} 26. Re1 {[%clk 0:00:19.8]} 26... Qe6
{[%clk 0:00:47.3]} 27. Qb5 {[%clk 0:00:18.8]} 27... e4 {[%clk 0:00:46.1]} 28.
dxe4 {[%clk 0:00:15]} 28... fxe4 {[%clk 0:00:47]} 29. Qe8 {[%clk 0:00:14.8]}
29... Rc8 {[%clk 0:00:44.7]} 30. Qb5 {[%clk 0:00:14.1]} 30... Nf5 {[%clk
0:00:37.2]} 31. Nb2 {[%clk 0:00:13.1]} 31... e3 {[%clk 0:00:35.5]} 32. Nc4
{[%clk 0:00:11]} 32... exf2+ {[%clk 0:00:35.2]} 33. Kxf2 {[%clk 0:00:11.4]}
33... Ne3 {[%clk 0:00:31.9]} 34. Nxe3 {[%clk 0:00:09.5]} 34... Qxe3+ {[%clk
0:00:32.8]} 35. Kf1 {[%clk 0:00:09.1]} 35... Rc7 {[%clk 0:00:28.5]} 36. Qf5
{[%clk 0:00:07.8]} 36... Rf7 {[%clk 0:00:22.8]} 37. Qg6+ {[%clk 0:00:06.3]}
37... Kf8 {[%clk 0:00:23]} 38. Bf3 {[%clk 0:00:05.6]} 38... Bg7 {[%clk
0:00:20.9]} 39. Rd1 {[%clk 0:00:03.6]} 39... Rxf3+ {[%clk 0:00:18.6]} 40. exf3
{[%clk 0:00:04.5]} 40... Qxf3+ {[%clk 0:00:19.5]} 41. Ke1 {[%clk 0:00:05]} 41...
Qe3+ {[%clk 0:00:19.9]} 42. Kf1 {[%clk 0:00:05.1]} 42... Qf3+ {[%clk 0:00:19.8]}
43. Ke1 {[%clk 0:00:05.4]} 43... Qxg3+ {[%clk 0:00:20.3]} 44. Kf1 {[%clk
0:00:05.1]} 44... Qf3+ {[%clk 0:00:20.1]} 45. Ke1 {[%clk 0:00:05.4]} 45... Be5
{[%clk 0:00:19]} 46. Qd3 {[%clk 0:00:04]} 46... Bg3+ {[%clk 0:00:18.6]} 47. Kd2
{[%clk 0:00:04.3]} 47... Bf4+ {[%clk 0:00:17.8]} 48. Kc2 {[%clk 0:00:04.1]}
48... Qxd3+ {[%clk 0:00:16]} 49. Kxd3 {[%clk 0:00:03.5]} 49... Be3 {[%clk
0:00:16.2]} 50. Ke4 {[%clk 0:00:03.8]} 50... Kf7 {[%clk 0:00:16]} 51. Kf5 {[%clk
0:00:04.7]} 51... Kg7 {[%clk 0:00:14.9]} 52. a4 {[%clk 0:00:05.1]} 52... Kf7
{[%clk 0:00:15]} 53. b4 {[%clk 0:00:05.4]} 53... Kg7 {[%clk 0:00:14.8]} 54. b5
{[%clk 0:00:05.9]} 54... Kf7 {[%clk 0:00:15.2]} 55. Rd3 {[%clk 0:00:06.2]} 55...
Kg7 {[%clk 0:00:15.2]} 56. Rd1 {[%clk 0:00:07.1]} 56... Kf7 {[%clk 0:00:15.4]}
57. Rd3 {[%clk 0:00:06.8]} 57... Bf2 {[%clk 0:00:14.1]} 58. Rb3 {[%clk
0:00:07.7]} 58... Be3 {[%clk 0:00:14]} 59. Rb4 {[%clk 0:00:07.8]} 59... d3
{[%clk 0:00:13.6]} 60. Rb3 {[%clk 0:00:06.3]} 60... d2 {[%clk 0:00:13.9]} 61.
Rd3 {[%clk 0:00:07.2]} 61... Bf4 {[%clk 0:00:14.1]} 62. Rd7+ {[%clk 0:00:06.6]}
62... Ke8 {[%clk 0:00:14.3]} 63. Ke6 {[%clk 0:00:06.8]} 63... g4 {[%clk
0:00:14.6]} 64. Rd4 {[%clk 0:00:05.1]} 64... g3 {[%clk 0:00:13]} 65. Rxf4 {[%clk
0:00:03.6]} 65... d1=Q {[%clk 0:00:12.8]} 0-1

[Event "*** Titled Tuesday Blitz"]
[Site "Chess.com"]
[Date "2021.03.30"]
[Round "10"]
[White "frenchpin"]
[Black "chessdiamant"]
[Result "1-0"]
[WhiteElo "2523"]
[BlackElo "2389"]
[TimeControl "180+1"]
[EndTime "11:59:02 PDT"]
[Termination "frenchpin won by checkmate"]

1. e4 {[%clk 0:03:00.9]} 1... c5 {[%clk 0:02:59.1]} 2. Nf3 {[%clk 0:02:59.5]}
2... d6 {[%clk 0:02:58.8]} 3. d4 {[%clk 0:02:59.5]} 3... cxd4 {[%clk 0:02:59.7]}
4. Nxd4 {[%clk 0:03:00.4]} 4... Nf6 {[%clk 0:03:00]} 5. f3 {[%clk 0:03:00.6]}
5... a6 {[%clk 0:02:59.2]} 6. c4 {[%clk 0:03:00.8]} 6... e5 {[%clk 0:02:54.7]}
7. Nc2 {[%clk 0:03:00]} 7... Be7 {[%clk 0:02:53.8]} 8. Nc3 {[%clk 0:03:00.2]}
8... O-O {[%clk 0:02:53.5]} 9. Be2 {[%clk 0:02:59.4]} 9... Nc6 {[%clk
0:02:52.7]} 10. O-O {[%clk 0:02:59.1]} 10... Be6 {[%clk 0:02:52.9]} 11. b3
{[%clk 0:02:53.9]} 11... Rc8 {[%clk 0:02:49.1]} 12. Rf2 {[%clk 0:02:46.7]} 12...
h6 {[%clk 0:02:38.7]} 13. Bb2 {[%clk 0:02:39.4]} 13... Nh5 {[%clk 0:02:18.5]}
14. g3 {[%clk 0:02:34.7]} 14... f5 {[%clk 0:02:01]} 15. exf5 {[%clk 0:02:29.2]}
15... Bxf5 {[%clk 0:02:00.8]} 16. Nd5 {[%clk 0:02:19.6]} 16... Nf6 {[%clk
0:01:49.8]} 17. Nce3 {[%clk 0:02:17]} 17... Be6 {[%clk 0:01:46]} 18. Kg2 {[%clk
0:02:11.8]} 18... Nd4 {[%clk 0:01:21.7]} 19. Bxd4 {[%clk 0:02:04.7]} 19... exd4
{[%clk 0:01:21.2]} 20. Qxd4 {[%clk 0:02:05]} 20... Nxd5 {[%clk 0:01:18.1]} 21.
Nxd5 {[%clk 0:02:04.1]} 21... Bf6 {[%clk 0:00:58.7]} 22. Nxf6+ {[%clk
0:02:03.4]} 22... Rxf6 {[%clk 0:00:59.6]} 23. Rd1 {[%clk 0:02:01.8]} 23... Qf8
{[%clk 0:00:53.7]} 24. Bd3 {[%clk 0:01:58.5]} 24... Re8 {[%clk 0:00:49.8]} 25.
Be4 {[%clk 0:01:55.9]} 25... Kh8 {[%clk 0:00:45.8]} 26. Rfd2 {[%clk 0:01:54.3]}
26... Bc8 {[%clk 0:00:44.6]} 27. Qe3 {[%clk 0:01:49.7]} 27... Bf5 {[%clk
0:00:36.6]} 28. Rd4 {[%clk 0:01:41.9]} 28... Bc8 {[%clk 0:00:30]} 29. Qd3 {[%clk
0:01:37.5]} 29... Ree6 {[%clk 0:00:17.8]} 30. Bd5 {[%clk 0:01:31.4]} 30... Re8
{[%clk 0:00:16.2]} 31. b4 {[%clk 0:01:28.4]} 31... Qe7 {[%clk 0:00:16.1]} 32.
Be4 {[%clk 0:01:25.9]} 32... Qd7 {[%clk 0:00:13.3]} 33. Rxd6 {[%clk 0:01:16.3]}
33... Qh3+ {[%clk 0:00:13.1]} 34. Kg1 {[%clk 0:01:16.3]} 34... Rxd6 {[%clk
0:00:11.7]} 35. Qxd6 {[%clk 0:01:16.1]} 35... Bf5 {[%clk 0:00:09.5]} 36. Re1
{[%clk 0:00:51.7]} 36... Bxe4 {[%clk 0:00:05.8]} 37. Rxe4 {[%clk 0:00:50.5]}
37... Rg8 {[%clk 0:00:04.1]} 38. Qe7 {[%clk 0:00:40.4]} 38... Qf5 {[%clk
0:00:03.8]} 39. Kg2 {[%clk 0:00:35.4]} 39... Rf8 {[%clk 0:00:02.9]} 40. f4
{[%clk 0:00:31.7]} 40... Rf7 {[%clk 0:00:02.5]} 41. Qe8+ {[%clk 0:00:31.1]}
41... Rf8 {[%clk 0:00:02.9]} 42. Qe6 {[%clk 0:00:29.7]} 42... Qh5 {[%clk
0:00:03.2]} 43. a4 {[%clk 0:00:25.7]} 43... Qd1 {[%clk 0:00:02]} 44. Qe7 {[%clk
0:00:20.1]} 44... Rg8 {[%clk 0:00:02.2]} 45. a5 {[%clk 0:00:14.8]} 45... Qc2+
{[%clk 0:00:02.8]} 46. Kh3 {[%clk 0:00:11.3]} 46... Qd1 {[%clk 0:00:03.4]} 47.
Re1 {[%clk 0:00:07.8]} 47... Qh5+ {[%clk 0:00:03.8]} 48. Kg2 {[%clk 0:00:07.9]}
48... Qg4 {[%clk 0:00:04.1]} 49. Qe6 {[%clk 0:00:06.8]} 49... Qh5 {[%clk
0:00:03.9]} 50. Qe5 {[%clk 0:00:05.3]} 50... Qg4 {[%clk 0:00:03.9]} 51. b5
{[%clk 0:00:04.6]} 51... Qd7 {[%clk 0:00:03.7]} 52. bxa6 {[%clk 0:00:03.7]}
52... bxa6 {[%clk 0:00:04.6]} 53. Qd5 {[%clk 0:00:03.5]} 53... Qa4 {[%clk
0:00:05.5]} 54. Re2 {[%clk 0:00:02.5]} 54... Qa2 {[%clk 0:00:06.4]} 55. Rxa2
{[%clk 0:00:02.1]} 55... Re8 {[%clk 0:00:07.2]} 56. Rd2 {[%clk 0:00:02.7]} 56...
Kh7 {[%clk 0:00:07.9]} 57. Qf5+ {[%clk 0:00:02.5]} 57... g6 {[%clk 0:00:08.1]}
58. Qf7+ {[%clk 0:00:02.3]} 58... Kh8 {[%clk 0:00:09]} 59. Qxe8+ {[%clk
0:00:03.2]} 59... Kh7 {[%clk 0:00:09.9]} 60. Rd7# {[%clk 0:00:03.4]} 1-0

[Event "*** Titled Tuesday Blitz"]
[Site "Chess.com"]
[Date "2021.03.30"]
[Round "10"]
[White "DanielNaroditsky"]
[Black "Firouzja2003"]
[Result "0-1"]
[WhiteElo "3056"]
[BlackElo "3113"]
[TimeControl "180+1"]
[EndTime "11:59:04 PDT"]
[Termination "Firouzja2003 won on time"]

1. d4 {[%clk 0:03:00.9]} 1... Nf6 {[%clk 0:02:59]} 2. Nc3 {[%clk 0:03:01.5]}
2... d5 {[%clk 0:02:56.3]} 3. Bf4 {[%clk 0:03:01.9]} 3... c5 {[%clk 0:02:55.1]}
4. e3 {[%clk 0:02:59.7]} 4... cxd4 {[%clk 0:02:54.6]} 5. Nb5 {[%clk 0:02:59.4]}
5... Na6 {[%clk 0:02:32]} 6. exd4 {[%clk 0:02:57.8]} 6... g6 {[%clk 0:02:31.9]}
7. c3 {[%clk 0:02:55.6]} 7... Bg7 {[%clk 0:02:32.1]} 8. Nf3 {[%clk 0:02:56.4]}
8... O-O {[%clk 0:02:32.1]} 9. Bd3 {[%clk 0:02:56.4]} 9... Nh5 {[%clk
0:02:30.6]} 10. Bg5 {[%clk 0:02:53.1]} 10... Nc7 {[%clk 0:02:30.2]} 11. a4
{[%clk 0:02:50.2]} 11... Ne6 {[%clk 0:02:29.5]} 12. Be3 {[%clk 0:02:48.6]} 12...
Nef4 {[%clk 0:02:27.2]} 13. Bf1 {[%clk 0:02:45.7]} 13... a6 {[%clk 0:01:59.4]}
14. Na3 {[%clk 0:02:44.8]} 14... Qc7 {[%clk 0:01:41.7]} 15. g3 {[%clk
0:02:44.7]} 15... Ne6 {[%clk 0:01:42]} 16. Bg2 {[%clk 0:02:42]} 16... f5 {[%clk
0:01:23]} 17. O-O {[%clk 0:02:30.9]} 17... Nf6 {[%clk 0:01:23]} 18. Ne5 {[%clk
0:02:29.1]} 18... Ne4 {[%clk 0:01:23.2]} 19. f3 {[%clk 0:02:23.6]} 19... Nf6
{[%clk 0:01:13.1]} 20. Qd2 {[%clk 0:02:03.8]} 20... Rd8 {[%clk 0:01:10.2]} 21.
Rae1 {[%clk 0:02:02.6]} 21... Bd7 {[%clk 0:01:06.4]} 22. Bh6 {[%clk 0:02:00.4]}
22... Qd6 {[%clk 0:00:56.1]} 23. a5 {[%clk 0:01:54.5]} 23... Be8 {[%clk
0:00:49.4]} 24. Nc2 {[%clk 0:01:49.3]} 24... Rac8 {[%clk 0:00:48.7]} 25. Bxg7
{[%clk 0:01:29.9]} 25... Kxg7 {[%clk 0:00:48.7]} 26. Nb4 {[%clk 0:01:30.6]}
26... Nf8 {[%clk 0:00:35.1]} 27. Nbd3 {[%clk 0:01:25.2]} 27... Bb5 {[%clk
0:00:35]} 28. Re3 {[%clk 0:01:19.1]} 28... Bxd3 {[%clk 0:00:30.4]} 29. Nxd3
{[%clk 0:01:17.5]} 29... N6d7 {[%clk 0:00:30.3]} 30. Rfe1 {[%clk 0:01:17.9]}
30... e6 {[%clk 0:00:30.4]} 31. Nf4 {[%clk 0:01:06.5]} 31... Re8 {[%clk
0:00:29.6]} 32. Bf1 {[%clk 0:01:03.5]} 32... Kf7 {[%clk 0:00:28.2]} 33. h4
{[%clk 0:01:02.8]} 33... Qc7 {[%clk 0:00:27.1]} 34. b4 {[%clk 0:01:00.2]} 34...
Nf6 {[%clk 0:00:24.4]} 35. Qf2 {[%clk 0:00:49.7]} 35... Nh5 {[%clk 0:00:11.4]}
36. Nxh5 {[%clk 0:00:39.9]} 36... gxh5 {[%clk 0:00:12.3]} 37. f4 {[%clk
0:00:35.4]} 37... Nd7 {[%clk 0:00:12.3]} 38. Qe2 {[%clk 0:00:35.7]} 38... Nf6
{[%clk 0:00:12.4]} 39. Rxe6 {[%clk 0:00:22.1]} 39... Qxc3 {[%clk 0:00:11.1]} 40.
Qe5 {[%clk 0:00:22.6]} 40... Qxg3+ {[%clk 0:00:05.7]} 41. Bg2 {[%clk 0:00:20]}
41... Qxe1+ {[%clk 0:00:05.6]} 42. Qxe1 {[%clk 0:00:20.7]} 42... Rxe6 {[%clk
0:00:06.3]} 43. Qb1 {[%clk 0:00:20.4]} 43... Rg8 {[%clk 0:00:05.5]} 44. Kf1
{[%clk 0:00:18.1]} 44... Ne4 {[%clk 0:00:05.7]} 45. Qc2 {[%clk 0:00:17]} 45...
Rc6 {[%clk 0:00:05.7]} 46. Qd1 {[%clk 0:00:14.5]} 46... Rg4 {[%clk 0:00:05.4]}
47. Bxe4 {[%clk 0:00:10.4]} 47... fxe4 {[%clk 0:00:05.2]} 48. Qb3 {[%clk
0:00:09.1]} 48... Rxf4+ {[%clk 0:00:05.1]} 49. Ke2 {[%clk 0:00:09.8]} 49... Rc4
{[%clk 0:00:04.7]} 50. Qg3 {[%clk 0:00:07.7]} 50... Rc2+ {[%clk 0:00:04.9]} 51.
Kd1 {[%clk 0:00:07.9]} 51... Rcf2 {[%clk 0:00:04.8]} 52. Qg5 {[%clk 0:00:06.9]}
52... Rf1+ {[%clk 0:00:05.1]} 53. Ke2 {[%clk 0:00:07.3]} 53... R4f2+ {[%clk
0:00:05.3]} 54. Ke3 {[%clk 0:00:07.6]} 54... Rf5 {[%clk 0:00:05.7]} 55. Qd8
{[%clk 0:00:06.1]} 55... R1f3+ {[%clk 0:00:05.9]} 56. Ke2 {[%clk 0:00:06.7]}
56... Kg6 {[%clk 0:00:05.2]} 57. Qe8+ {[%clk 0:00:04]} 57... Rf7 {[%clk
0:00:05.3]} 58. Qe6+ {[%clk 0:00:04.2]} 58... R3f6 {[%clk 0:00:05.5]} 59. Qxd5
{[%clk 0:00:04.4]} 59... Rf2+ {[%clk 0:00:05.1]} 60. Ke3 {[%clk 0:00:02.7]}
60... R2f5 {[%clk 0:00:05.2]} 61. Qxe4 {[%clk 0:00:02.2]} 61... Kf6 {[%clk
0:00:05.9]} 62. Qc2 {[%clk 0:00:02.1]} 62... Re7+ {[%clk 0:00:06.3]} 63. Kd3
{[%clk 0:00:01.4]} 63... Rf3+ {[%clk 0:00:02.6]} 64. Kc4 {[%clk 0:00:01.2]}
64... Rc7+ {[%clk 0:00:03.3]} 0-1

[Event "*** Titled Tuesday Blitz"]
[Site "Chess.com"]
[Date "2021.03.30"]
[Round "10"]
[White "iamnotIM"]
[Black "Volodar_Murzin"]
[Result "0-1"]
[WhiteElo "2612"]
[BlackElo "2769"]
[TimeControl "180+1"]
[EndTime "11:59:07 PDT"]
[Termination "Volodar_Murzin won by resignation"]

1. Nf3 {[%clk 0:03:00.9]} 1... Nf6 {[%clk 0:02:59]} 2. b3 {[%clk 0:03:00]} 2...
g6 {[%clk 0:02:58.3]} 3. Bb2 {[%clk 0:02:59.9]} 3... Bg7 {[%clk 0:02:58]} 4. c4
{[%clk 0:03:00.3]} 4... O-O {[%clk 0:02:58]} 5. g3 {[%clk 0:02:59.3]} 5... d6
{[%clk 0:02:58.4]} 6. Bg2 {[%clk 0:02:59.6]} 6... e5 {[%clk 0:02:57.6]} 7. O-O
{[%clk 0:02:59.2]} 7... Nc6 {[%clk 0:02:53.9]} 8. d4 {[%clk 0:02:56.7]} 8... e4
{[%clk 0:02:50.2]} 9. Ne1 {[%clk 0:02:53.5]} 9... Bf5 {[%clk 0:02:41]} 10. Nc2
{[%clk 0:02:39.2]} 10... Qd7 {[%clk 0:02:37.9]} 11. Ne3 {[%clk 0:02:35.5]} 11...
Bh3 {[%clk 0:02:36.7]} 12. d5 {[%clk 0:02:31.4]} 12... Ne5 {[%clk 0:02:31.4]}
13. Bxe5 {[%clk 0:02:29.7]} 13... dxe5 {[%clk 0:02:30.7]} 14. Nd2 {[%clk
0:02:28.8]} 14... Bh6 {[%clk 0:02:16.1]} 15. Qc2 {[%clk 0:02:26]} 15... Bxe3
{[%clk 0:02:08.2]} 16. fxe3 {[%clk 0:02:26]} 16... Bxg2 {[%clk 0:02:07.6]} 17.
Rxf6 {[%clk 0:02:20]} 17... Bh3 {[%clk 0:02:06.8]} 18. Nxe4 {[%clk 0:02:09.1]}
18... Kg7 {[%clk 0:02:03.8]} 19. Rf2 {[%clk 0:01:44.1]} 19... Bf5 {[%clk
0:01:57.3]} 20. Nc5 {[%clk 0:01:44]} 20... Qe7 {[%clk 0:01:50.8]} 21. e4 {[%clk
0:01:31.5]} 21... Bg4 {[%clk 0:01:47.6]} 22. Nd3 {[%clk 0:01:25]} 22... h5
{[%clk 0:01:47]} 23. Qc3 {[%clk 0:01:20.5]} 23... f6 {[%clk 0:01:46.7]} 24. c5
{[%clk 0:01:20.5]} 24... h4 {[%clk 0:01:45.6]} 25. Qd2 {[%clk 0:00:44.3]} 25...
Rh8 {[%clk 0:01:41.5]} 26. Raf1 {[%clk 0:00:42.8]} 26... Raf8 {[%clk 0:01:40.7]}
27. Qe3 {[%clk 0:00:42.8]} 27... Bh3 {[%clk 0:01:28.1]} 28. Rc1 {[%clk
0:00:40.2]} 28... Rh5 {[%clk 0:01:25.7]} 29. b4 {[%clk 0:00:39.2]} 29... Rfh8
{[%clk 0:01:15.9]} 30. d6 {[%clk 0:00:35.8]} 30... cxd6 {[%clk 0:01:15.2]} 31.
cxd6 {[%clk 0:00:36.7]} 31... Qxd6 {[%clk 0:01:15.4]} 32. Qxa7 {[%clk
0:00:36.3]} 32... hxg3 {[%clk 0:01:00.5]} 33. Qxb7+ {[%clk 0:00:35.8]} 33... Bd7
{[%clk 0:00:59.9]} 34. hxg3 {[%clk 0:00:16.8]} 34... Rh1+ {[%clk 0:00:55.9]} 35.
Kg2 {[%clk 0:00:17.3]} 35... Rxc1 {[%clk 0:00:41]} 36. Nxc1 {[%clk 0:00:16.8]}
36... Qd1 {[%clk 0:00:32.7]} 37. Rf1 {[%clk 0:00:13.9]} 37... Qd2 {[%clk
0:00:32]} 38. Rf2 {[%clk 0:00:11.7]} 38... g5 {[%clk 0:00:19.8]} 39. Nd3 {[%clk
0:00:10.7]} 39... Rd8 {[%clk 0:00:13.3]} 40. Qb6 {[%clk 0:00:10.8]} 40... Rf8
{[%clk 0:00:12.9]} 41. Qd6 {[%clk 0:00:10.3]} 41... Rf7 {[%clk 0:00:13.3]} 42.
Qd5 {[%clk 0:00:07.1]} 42... Qc3 {[%clk 0:00:11.3]} 43. b5 {[%clk 0:00:06.6]}
43... Bc8 {[%clk 0:00:10.7]} 44. Nc5 {[%clk 0:00:06.7]} 44... Qb4 {[%clk
0:00:07.1]} 45. a4 {[%clk 0:00:06]} 45... Rc7 {[%clk 0:00:06.2]} 46. Ne6+ {[%clk
0:00:05]} 46... Bxe6 {[%clk 0:00:06.1]} 47. Qxe6 {[%clk 0:00:05.9]} 47... Qxe4+
{[%clk 0:00:06.6]} 48. Kh2 {[%clk 0:00:05.8]} 48... Rf7 {[%clk 0:00:05.6]} 49.
b6 {[%clk 0:00:05.5]} 49... Kg6 {[%clk 0:00:06]} 50. Qh3 {[%clk 0:00:04.3]}
50... Rh7 {[%clk 0:00:05.7]} 51. Qxh7+ {[%clk 0:00:04.8]} 51... Kxh7 {[%clk
0:00:06.6]} 52. a5 {[%clk 0:00:05.1]} 52... Kg6 {[%clk 0:00:05.5]} 53. a6 {[%clk
0:00:04.5]} 53... Qe3 {[%clk 0:00:05.4]} 54. Kg2 {[%clk 0:00:04.5]} 54... Qxb6
{[%clk 0:00:05.4]} 55. Rf3 {[%clk 0:00:04.2]} 55... Qxa6 {[%clk 0:00:05.8]} 56.
Rf2 {[%clk 0:00:04.2]} 56... Qb6 {[%clk 0:00:05.9]} 57. Rf3 {[%clk 0:00:04.8]}
57... Qc6 {[%clk 0:00:06.8]} 58. Kf2 {[%clk 0:00:04.5]} 58... g4 {[%clk
0:00:07.3]} 59. Re3 {[%clk 0:00:04.5]} 59... Qh1 {[%clk 0:00:07.6]} 60. Rd3
{[%clk 0:00:03.6]} 60... Qh2+ {[%clk 0:00:07.6]} 61. Ke1 {[%clk 0:00:03.7]}
61... e4 {[%clk 0:00:07.5]} 62. Kd2 {[%clk 0:00:04.6]} 62... exd3 {[%clk
0:00:07.3]} 0-1